bitfinex/quotes_BTCUSD_20230113
["timestamp","ask_amount","ask_price","bid_price","bid_amount"]
[1673651417295,0.00868006,19875.0,19874.0,3.0374865]
[1673651418286,0.00868006,19875.0,19874.0,2.8374865]
[1673651418541,0.00868006,19875.0,19874.0,3.4347924]
[1673651418783,0.00868006,19875.0,19874.0,3.6347924]
[1673651419032,0.00868006,19875.0,19874.0,3.0374865]
[1673651419290,0.00868006,19875.0,19874.0,3.3512477]
[1673651419774,0.00868006,19875.0,19874.0,2.8374865]
[1673651420035,0.00868006,19875.0,19874.0,1.47176099]
[1673651420288,0.00868006,19875.0,19874.0,1.47015785]
[1673651420533,0.00868006,19875.0,19874.0,1.14649885]
[1673651422052,0.00868006,19875.0,19874.0,1.47019385]
[1673651423369,0.03618747,19875.0,19874.0,1.47019385]
[1673651423627,0.03618747,19875.0,19874.0,0.94984765]
[1673651423877,1.8086032,19875.0,19874.0,0.14]
[1673651424380,1.6086032,19875.0,19874.0,0.14]
[1673651425890,1.84809379,19875.0,19874.0,0.14]
[1673651426126,0.2,19874.0,19870.0,0.61960117]
[1673651426387,0.2,19874.0,19870.0,0.00019]
[1673651426388,1.5096,19873.0,19870.0,0.00019]
[1673651426645,2.02619132,19873.0,19870.0,0.00019]
[1673651426930,2.02619132,19873.0,19870.0,0.53614726]
[1673651427148,2.02619132,19873.0,19870.0,0.73643267]
[1673651427386,2.02619132,19873.0,19870.0,0.53614726]
[1673651427888,1.1414,19873.0,19870.0,1.23758532]
[1673651428144,0.02456867,19872.0,19871.0,0.12375853]
[1673651428638,0.02456867,19872.0,19871.0,0.32375853]
[1673651428909,0.02456867,19872.0,19871.0,0.67983108]
[1673651429154,0.02456867,19872.0,19871.0,0.12375853]
[1673651429424,0.02456867,19872.0,19871.0,0.7752963]
[1673651429425,0.15856867,19872.0,19871.0,0.7752963]
[1673651429707,0.15856867,19872.0,19871.0,2.25971231]
[1673651429943,0.15856867,19872.0,19871.0,2.76295731]
[1673651430201,0.15856867,19872.0,19871.0,2.76297933]
[1673651430469,0.15856867,19872.0,19871.0,2.76297976]
[1673651431009,0.15856867,19872.0,19871.0,2.76483145]
[1673651431510,0.09036025,19872.0,19871.0,2.98961659]
[1673651431805,0.09036025,19872.0,19871.0,3.06480915]
[1673651432063,0.00868006,19875.0,19871.0,3.06480915]
[1673651432335,0.00868006,19875.0,19873.0,0.37598443]
[1673651432585,0.00868006,19875.0,19874.0,1.83113165]
[1673651432842,0.00868006,19875.0,19874.0,2.03113165]
[1673651433088,0.00868006,19875.0,19874.0,2.0306774]
[1673651433622,0.00868006,19875.0,19874.0,2.18107117]
[1673651433839,0.00868006,19875.0,19874.0,2.44173735]
[1673651434081,0.01168006,19875.0,19874.0,2.29134358]
[1673651434321,0.00868006,19875.0,19874.0,2.96103884]
[1673651434565,0.01468006,19875.0,19874.0,2.87964507]
[1673651435572,0.01468006,19875.0,19874.0,3.03003884]
[1673651436065,0.01468006,19875.0,19874.0,2.87964507]
[1673651436311,0.01468006,19875.0,19874.0,3.03003884]
[1673651436559,0.01468006,19875.0,19874.0,2.87964507]
[1673651436810,0.00868006,19875.0,19874.0,2.90564507]
[1673651437054,0.01568006,19875.0,19874.0,2.90564507]
[1673651437560,0.01568006,19875.0,19874.0,3.05603884]
[1673651438057,0.01568006,19875.0,19874.0,2.90564507]
[1673651438304,0.01568006,19875.0,19874.0,3.05603884]
[1673651439082,0.01568006,19875.0,19874.0,2.53673735]
[1673651439336,0.01568006,19875.0,19874.0,3.13665539]
[1673651439648,0.01568006,19875.0,19874.0,3.28704916]
[1673651441095,0.01568006,19875.0,19874.0,3.16185719]
[1673651441345,0.01568006,19875.0,19874.0,3.28731361]
[1673651442337,0.01568006,19875.0,19874.0,2.8367906]
[1673651442591,0.01568006,19875.0,19874.0,2.08627376]
[1673651443094,0.01568006,19875.0,19874.0,2.31195343]
[1673651443344,0.01568006,19875.0,19874.0,2.08627376]
[1673651443836,0.01568006,19875.0,19874.0,2.58944276]
[1673651444087,0.01568006,19875.0,19874.0,3.30796676]
[1673651444337,0.01568006,19875.0,19874.0,3.08228709]
[1673651444578,0.01568006,19875.0,19874.0,3.6584184]
[1673651446188,0.01568006,19875.0,19874.0,3.65845972]
[1673651446217,0.01568006,19875.0,19874.0,4.36371447]
[1673651446733,0.01568006,19875.0,19874.0,4.92678296]
[1673651446992,0.01568006,19875.0,19874.0,4.28275741]
[1673651447290,0.01568006,19875.0,19874.0,4.84224174]
[1673651447545,0.01568006,19875.0,19874.0,4.32893465]
[1673651447796,0.01568006,19875.0,19874.0,3.32193513]
[1673651448050,0.01568006,19875.0,19874.0,2.90060673]
[1673651448293,0.01568006,19875.0,19874.0,2.17171227]
[1673651448833,0.01568006,19875.0,19874.0,2.62173446]
[1673651449303,0.01568006,19875.0,19874.0,2.62173559]
[1673651449551,0.01568006,19875.0,19874.0,2.40037461]
[1673651450038,0.01568006,19875.0,19874.0,2.17464915]
[1673651450777,0.01568006,19875.0,19874.0,2.49510084]
[1673651451022,0.01568006,19875.0,19874.0,2.7208263]
[1673651451285,0.01568006,19875.0,19874.0,2.49510084]
[1673651451534,0.01568006,19875.0,19874.0,2.94093014]
[1673651452777,0.01568006,19875.0,19874.0,2.99292567]
[1673651453270,0.01568006,19875.0,19874.0,3.58998364]
[1673651453527,0.01568006,19875.0,19874.0,3.78998364]
[1673651453774,0.01568006,19875.0,19874.0,2.99292567]
[1673651454020,0.01568006,19875.0,19874.0,3.42271796]
[1673651454807,0.10698006,19875.0,19874.0,1.0698538]
[1673651455058,0.61429701,19875.0,19874.0,0.1]
[1673651455548,0.81429701,19875.0,19874.0,0.1]
[1673651455797,1.31744101,19875.0,19873.0,0.64709571]
[1673651456044,1.31044101,19875.0,19873.0,0.50115265]
[1673651456289,0.2,19874.0,19873.0,0.50115265]
[1673651457296,0.2,19874.0,19873.0,0.50915265]
[1673651457543,0.2,19874.0,19873.0,0.50115265]
[1673651457791,0.267,19874.0,19873.0,0.50815265]
[1673651458295,0.067,19874.0,19873.0,1.03550368]
[1673651459528,1.01500606,19875.0,19873.0,1.02850368]
[1673651459781,0.092,19874.0,19873.0,1.15510549]
[1673651460044,0.092,19874.0,19873.0,1.03650368]
[1673651462313,0.092,19874.0,19873.0,1.18701808]
[1673651462557,0.092,19874.0,19873.0,1.36019868]
[1673651463065,0.092,19874.0,19873.0,1.03650368]
[1673651465310,0.595169,19874.0,19873.0,1.03650368]
[1673651466601,0.595169,19874.0,19873.0,0.50915265]
[1673651466854,0.99429195,19874.0,19873.0,0.50915265]
[1673651467098,0.595169,19874.0,19873.0,0.50915265]
[1673651467562,1.10095047,19874.0,19873.0,0.50915265]
[1673651468052,0.595169,19874.0,19873.0,0.50915265]
[1673651468325,0.092,19874.0,19873.0,1.00394404]
[1673651468563,0.092,19874.0,19873.0,1.25439609]
[1673651468809,0.092,19874.0,19873.0,1.80381655]
[1673651469048,0.092,19874.0,19873.0,2.1749661]
[1673651469282,0.092,19874.0,19873.0,2.82856695]
[1673651469528,0.092,19874.0,19873.0,2.85272105]
[1673651469771,0.09189348,19874.0,19873.0,4.23708052]
[1673651470020,0.09189348,19874.0,19873.0,0.15861379]
[1673651470021,0.59506248,19874.0,19873.0,0.15861379]
[1673651470264,1.10723278,19874.0,19873.0,0.008]
[1673651470764,1.61040178,19874.0,19873.0,0.008]
[1673651471014,1.10723278,19874.0,19873.0,0.008]
[1673651471287,1.30723278,19874.0,19873.0,0.008]
[1673651471529,1.10723278,19874.0,19873.0,0.008]
[1673651472016,1.30723278,19874.0,19873.0,0.008]
[1673651472768,0.79506248,19874.0,19873.0,0.008]
[1673651473009,1.54215935,19874.0,19873.0,0.008]
[1673651473248,1.44699085,19874.0,19873.0,0.008]
[1673651474763,1.95015985,19874.0,19873.0,0.008]
[1673651475794,1.50306298,19874.0,19873.0,0.008]
[1673651476029,1.80306298,19874.0,19873.0,0.008]
[1673651476770,2.24469768,19874.0,19873.0,0.008]
[1673651477017,1.80306298,19874.0,19873.0,0.008]
[1673651477594,1.96115487,19874.0,19873.0,0.008]
[1673651477795,2.18535444,19874.0,19873.0,0.008]
[1673651478285,1.96115487,19874.0,19873.0,0.008]
[1673651478559,2.21115487,19874.0,19873.0,0.008]
[1673651478837,2.21115487,19874.0,19869.0,0.21355678]
[1673651478838,2.11926139,19874.0,19869.0,0.21355678]
[1673651479079,2.738639,19874.0,19869.0,0.21355678]
[1673651479333,0.5,19873.0,19868.0,0.01176854]
[1673651479583,0.2,19871.0,19869.0,0.00019]
[1673651479828,0.2,19871.0,19869.0,0.00010994]
[1673651480081,1.006542,19870.0,19869.0,0.00110994]
[1673651480829,1.006542,19870.0,19869.0,0.00010994]
[1673651481077,1.206542,19870.0,19868.0,0.60608869]
[1673651481346,1.206542,19870.0,19869.0,0.001]
[1673651481578,1.341542,19870.0,19869.0,0.001]
[1673651481824,1.591542,19870.0,19869.0,0.001]
[1673651482093,1.391542,19870.0,19869.0,0.56699142]
[1673651482343,1.391542,19870.0,19869.0,0.62496742]
[1673651483085,1.391542,19870.0,19869.0,0.56699142]
[1673651483337,1.391542,19870.0,19869.0,0.001]
[1673651483596,1.591542,19870.0,19869.0,0.001]
[1673651483946,1.9986544,19870.0,19869.0,0.001]
[1673651485339,0.2,19869.0,19868.0,0.00609469]
[1673651485597,1.19309763,19869.0,19868.0,0.00509469]
[1673651485844,0.503296,19869.0,19868.0,0.06178845]
[1673651486091,0.503296,19869.0,19868.0,0.68476877]
[1673651486606,0.753296,19869.0,19868.0,0.68476877]
[1673651487114,0.90436675,19869.0,19868.0,0.68576877]
[1673651487372,0.30107075,19869.0,19868.0,0.68476877]
[1673651487625,0.30107075,19869.0,19868.0,1.66023021]
[1673651487904,0.31607075,19869.0,19868.0,1.66623021]
[1673651488133,0.30107075,19869.0,19868.0,1.66023021]
[1673651488388,0.30107075,19869.0,19868.0,1.51561642]
[1673651488389,0.31507075,19869.0,19868.0,1.51561642]
[1673651488635,0.30107075,19869.0,19868.0,1.45292266]
[1673651488916,0.31507075,19869.0,19868.0,1.45892266]
[1673651489188,0.30107075,19869.0,19868.0,1.45292266]
[1673651489693,0.30107075,19869.0,19868.0,0.00509469]
[1673651489694,1.70226578,19869.0,19868.0,0.00509469]
[1673651490733,1.90226578,19869.0,19868.0,0.00509469]
[1673651490986,1.91626578,19869.0,19868.0,0.01109469]
[1673651491804,1.90226578,19869.0,19868.0,0.00509469]
[1673651492547,2.03626578,19869.0,19868.0,0.00609469]
[1673651493328,2.31022166,19869.0,19868.0,0.00609469]
[1673651493820,2.03626578,19869.0,19868.0,0.00609469]
[1673651494576,1.83626578,19869.0,19868.0,0.00509469]
[1673651494831,1.70226578,19869.0,19868.0,0.00509469]
[1673651495088,1.70226578,19869.0,19868.0,0.00609469]
[1673651495089,1.80226578,19869.0,19868.0,0.00609469]
[1673651495587,1.40766275,19869.0,19868.0,0.00609469]
[1673651495834,0.90436675,19869.0,19868.0,0.00609469]
[1673651496644,1.10436675,19869.0,19868.0,0.00395845]
[1673651497104,0.90436675,19869.0,19868.0,0.00395845]
[1673651497860,0.90436675,19869.0,19868.0,0.50088924]
[1673651499854,0.90436675,19869.0,19868.0,0.498753]
[1673651500125,0.90436675,19869.0,19867.0,0.63805504]
[1673651500371,0.90436675,19869.0,19867.0,1.13920769]
[1673651500644,0.40107075,19869.0,19867.0,1.13920769]
[1673651500868,0.30107075,19869.0,19867.0,0.51167778]
[1673651501123,0.62210042,19868.0,19867.0,0.51267778]
[1673651501380,0.62210042,19868.0,19867.0,0.58005422]
[1673651501630,0.62210042,19868.0,19867.0,0.01152513]
[1673651501878,2.07874242,19868.0,19867.0,0.01152513]
[1673651502125,2.07874242,19868.0,19867.0,0.01052513]
[1673651502370,2.10574242,19868.0,19867.0,0.01152513]
[1673651502916,2.10574242,19868.0,19867.0,0.00152513]
[1673651506320,2.12390439,19868.0,19867.0,0.00152513]
[1673651507538,2.31848453,19868.0,19867.0,5.13e-06]
[1673651507770,2.46807642,19868.0,19867.0,5.13e-06]
[1673651508292,2.01848453,19868.0,19867.0,5.13e-06]
[1673651508541,2.52035649,19868.0,19867.0,5.13e-06]
[1673651508787,2.3707646,19868.0,19867.0,5.13e-06]
[1673651509041,2.31848453,19868.0,19867.0,5.13e-06]
[1673651510091,2.01848453,19868.0,19867.0,5.13e-06]
[1673651511096,1.283642,19868.0,19867.0,5.13e-06]
[1673651512865,0.277,19868.0,19867.0,1.13862231]
[1673651513129,0.277,19868.0,19867.0,1.46231731]
[1673651515105,0.277,19868.0,19867.0,1.13862231]
[1673651515610,0.277,19868.0,19867.0,5.13e-06]
[1673651515611,1.39108414,19868.0,19867.0,5.13e-06]
[1673651515861,1.89440514,19868.0,19867.0,5.13e-06]
[1673651516886,1.283642,19868.0,19867.0,5.13e-06]
[1673651517132,1.583642,19868.0,19867.0,5.13e-06]
[1673651517378,2.20324432,19868.0,19867.0,5.13e-06]
[1673651517635,1.90324432,19868.0,19867.0,5.13e-06]
[1673651519126,1.283642,19868.0,19867.0,5.13e-06]
[1673651520593,1.283642,19868.0,19867.0,0.06403235]
[1673651520834,1.283642,19868.0,19867.0,5.13e-06]
[1673651530072,0.09138704,19867.0,19866.0,0.01147287]
[1673651530307,1.29808104,19867.0,19866.0,0.01147287]
[1673651531038,1.84485681,19867.0,19866.0,0.01147287]
[1673651531523,2.04485681,19867.0,19866.0,0.01147287]
[1673651532038,2.06085681,19867.0,19866.0,0.01647287]
[1673651532778,1.86085681,19867.0,19866.0,0.01647287]
[1673651533275,2.06085681,19867.0,19866.0,0.01647287]
[1673651534244,1.86085681,19867.0,19866.0,0.01647287]
[1673651534736,1.26620981,19867.0,19866.0,0.01647287]
[1673651536277,1.46620981,19867.0,19866.0,0.01647287]
[1673651536523,1.96955681,19867.0,19866.0,0.01647287]
[1673651537989,1.76955681,19867.0,19866.0,0.01647287]
[1673651538233,1.96955681,19867.0,19866.0,0.01647287]
[1673651538995,1.76955681,19867.0,19866.0,0.01647287]
[1673651540959,1.27278104,19867.0,19866.0,0.01647287]
[1673651541447,1.47278104,19867.0,19866.0,0.01647287]
[1673651541703,2.40878489,19867.0,19866.0,0.01647287]
[1673651542202,2.70878489,19867.0,19866.0,0.01647287]
[1673651542446,2.40878489,19867.0,19866.0,0.01647287]
[1673651543219,2.12663822,19867.0,19866.0,0.01647287]
[1673651544217,2.27623011,19867.0,19866.0,0.01647287]
[1673651544976,2.12663822,19867.0,19866.0,0.01647287]
[1673651545225,2.1465725,19867.0,19866.0,0.01647287]
[1673651545477,2.2957619,19867.0,19866.0,0.01647287]
[1673651545745,2.70715063,19867.0,19866.0,0.01647287]
[1673651545993,2.55770792,19867.0,19866.0,0.01647287]
[1673651546242,2.70715063,19867.0,19866.0,0.01647287]
[1673651546489,3.37065523,19867.0,19866.0,0.01647287]
[1673651546737,3.50047325,19867.0,19866.0,0.01647287]
[1673651547500,2.99632414,19867.0,19866.0,0.01647287]
[1673651547738,3.50041389,19867.0,19866.0,0.01647287]
[1673651547992,2.62145106,19867.0,19866.0,0.01647287]
[1673651548235,3.36837696,19867.0,19866.0,0.01647287]
[1673651548486,2.6569882,19867.0,19866.0,0.01647287]
[1673651548739,1.98438076,19867.0,19866.0,0.01647287]
[1673651549262,2.78878393,19867.0,19866.0,0.01647287]
[1673651549510,2.49000264,19867.0,19866.0,0.01647287]
[1673651549756,3.18333048,19867.0,19865.0,0.00513965]
[1673651550016,3.18333048,19867.0,19865.0,9.65e-06]
[1673651550017,1.68375779,19866.0,19865.0,9.65e-06]
[1673651550268,2.69050179,19866.0,19865.0,9.65e-06]
[1673651550517,3.15916286,19866.0,19865.0,9.65e-06]
[1673651551021,3.15674646,19866.0,19865.0,9.65e-06]
[1673651551273,2.43665327,19866.0,19865.0,9.65e-06]
[1673651551515,2.93762236,19866.0,19865.0,9.65e-06]
[1673651551763,2.06364812,19866.0,19865.0,9.65e-06]
[1673651552008,2.28729818,19866.0,19865.0,9.65e-06]
[1673651552270,0.2,19865.0,19863.0,0.00653918]
[1673651552551,2.26259393,19864.0,19863.0,0.00653918]
[1673651552849,2.313492,19864.0,19863.0,0.00653918]
[1673651553401,2.863492,19864.0,19863.0,0.00653918]
[1673651553625,2.999492,19864.0,19863.0,0.00653918]
[1673651554125,3.43239673,19864.0,19863.0,0.00653918]
[1673651554374,3.14859393,19864.0,19863.0,0.00653918]
[1673651555398,3.23884885,19864.0,19863.0,0.20682459]
[1673651555649,0.889423,19864.0,19863.0,0.20682459]
[1673651555889,0.889423,19864.0,19863.0,0.00653918]
[1673651556136,0.889423,19864.0,19863.0,0.0727209]
[1673651556383,0.889423,19864.0,19863.0,0.00653918]
[1673651556384,0.753423,19864.0,19863.0,0.00653918]
[1673651556643,0.93952493,19864.0,19863.0,0.00853918]
[1673651556889,1.15652451,19864.0,19863.0,0.00853918]
[1673651557399,1.61952451,19864.0,19863.0,0.00653918]
[1673651557654,2.18660999,19864.0,19862.0,1.908e-05]
[1673651557907,0.92107073,19863.0,19862.0,1.908e-05]
[1673651558161,1.63009774,19863.0,19862.0,1.908e-05]
[1673651558399,2.21304531,19863.0,19862.0,1.908e-05]
[1673651558645,2.5109143,19863.0,19862.0,1.908e-05]
[1673651558896,2.61187872,19863.0,19862.0,1.908e-05]
[1673651559396,2.74787872,19863.0,19862.0,9.08e-06]
[1673651559646,2.8969143,19863.0,19862.0,9.08e-06]
[1673651559894,3.17696056,19863.0,19862.0,9.08e-06]
[1673651560142,3.40020758,19863.0,19862.0,9.08e-06]
[1673651560391,3.06954008,19863.0,19861.0,1.169e-05]
[1673651560649,0.14883385,19862.0,19861.0,1.169e-05]
[1673651560912,0.34883385,19862.0,19861.0,1.169e-05]
[1673651561155,1.66427985,19862.0,19861.0,1.169e-05]
[1673651561417,2.29535606,19862.0,19861.0,1.169e-05]
[1673651561666,2.39652221,19862.0,19861.0,1.169e-05]
[1673651561933,3.06708892,19862.0,19860.0,1.841e-05]
[1673651562190,0.20006,19860.0,19859.0,9.82e-06]
[1673651562434,2.38245952,19860.0,19857.0,0.01311119]
[1673651562682,2.38245952,19860.0,19857.0,0.00811119]
[1673651562683,0.68683413,19859.0,19857.0,0.00811119]
[1673651562930,1.719225,19858.0,19857.0,0.00811119]
[1673651563171,2.019225,19858.0,19857.0,0.00811119]
[1673651563421,0.00810981,19857.0,19848.0,3.9521]
[1673651563669,2.014671,19855.0,19850.0,0.50732739]
[1673651563919,0.0085,19854.0,19850.0,0.50732739]
[1673651564163,0.0085,19854.0,19848.0,1.54988541]
[1673651564164,1.511121,19853.0,19848.0,1.54988541]
[1673651564402,0.3,19852.0,19849.0,0.64659917]
[1673651564660,1.007504,19851.0,19849.0,0.64659917]
[1673651564919,0.503752,19851.0,19849.0,0.70077257]
[1673651565177,0.503752,19851.0,19849.0,0.50115265]
[1673651565424,0.503752,19851.0,19849.0,1.01376078]
[1673651565668,0.503752,19851.0,19850.0,0.323695]
[1673651565919,0.763752,19851.0,19849.0,1.01376078]
[1673651566162,0.753752,19851.0,19849.0,1.01376078]
[1673651566410,0.769752,19851.0,19849.0,1.01376078]
[1673651566908,0.769752,19851.0,19849.0,1.11513686]
[1673651567162,0.753812,19851.0,19849.0,1.11513686]
[1673651567406,1.273564,19851.0,19849.0,0.61398421]
[1673651567650,1.257564,19851.0,19849.0,0.51260813]
[1673651567901,1.272564,19851.0,19849.0,0.51260813]
[1673651568168,1.8961088,19851.0,19846.0,0.503879]
[1673651568410,0.62302757,19850.0,19847.0,0.50115265]
[1673651568658,0.503803,19849.0,19847.0,1.05025694]
[1673651568921,0.503803,19849.0,19848.0,0.95757774]
[1673651569413,0.503803,19849.0,19848.0,0.323695]
[1673651569655,0.753803,19849.0,19848.0,0.323695]
[1673651570162,0.753803,19849.0,19848.0,0.318695]
[1673651570413,0.25,19849.0,19848.0,1.04729817]
[1673651570659,0.25,19849.0,19848.0,0.91160253]
[1673651570914,0.266,19849.0,19848.0,0.91160253]
[1673651571403,0.769803,19849.0,19848.0,0.91160253]
[1673651572141,1.273606,19849.0,19848.0,0.59290753]
[1673651572647,1.273606,19849.0,19847.0,0.49219936]
[1673651573674,1.257606,19849.0,19847.0,0.49219936]
[1673651573916,1.272606,19849.0,19847.0,0.49219936]
[1673651574150,1.87160792,19849.0,19847.0,0.49219936]
[1673651575133,1.87166792,19849.0,19847.0,0.49219936]
[1673651575651,0.3,19848.0,19843.0,1.49014822]
[1673651575924,1.007734,19847.0,19843.0,1.49014822]
[1673651576183,0.55614707,19847.0,19845.0,0.59260985]
[1673651576398,0.768872,19849.0,19846.0,0.05926099]
[1673651576677,0.518872,19849.0,19846.0,0.2595464]
[1673651576923,0.25,19847.0,19846.0,0.05926099]
[1673651577178,6e-05,19847.0,19846.0,0.05926099]
[1673651577423,6e-05,19847.0,19845.0,0.50115265]
[1673651577675,6e-05,19847.0,19846.0,0.2]
[1673651577931,6e-05,19847.0,19846.0,0.523855]
[1673651578174,0.35606,19847.0,19846.0,0.523855]
[1673651578444,0.25,19847.0,19846.0,0.323855]
[1673651578692,0.282,19847.0,19845.0,1.15970104]
[1673651578941,0.282,19847.0,19846.0,0.323855]
[1673651579433,0.282,19847.0,19845.0,1.15970104]
[1673651579688,0.753857,19847.0,19845.0,0.65854839]
[1673651579927,0.859857,19847.0,19843.0,0.91964349]
[1673651580210,1.363711,19847.0,19844.0,0.50115265]
[1673651580458,2.00247845,19847.0,19844.0,1.10635189]
[1673651580714,1.89647845,19847.0,19844.0,1.10635189]
[1673651580959,1.92847845,19847.0,19844.0,1.10635189]
[1673651581200,0.49972036,19846.0,19845.0,0.323855]
[1673651581452,0.49972036,19846.0,19843.0,0.54042677]
[1673651581453,1.50747836,19846.0,19843.0,0.54042677]
[1673651581697,1.50747836,19846.0,19843.0,1.04157942]
[1673651582221,1.50747836,19846.0,19843.0,0.01394349]
[1673651582222,1.25821493,19846.0,19843.0,0.01394349]
[1673651582481,0.64693041,19845.0,19843.0,0.01394349]
[1673651582730,1.71179,19844.0,19843.0,0.01394349]
[1673651582972,1.71179,19844.0,19841.0,0.52416578]
[1673651583480,1.96179,19844.0,19839.0,0.01521704]
[1673651583749,2.177969,19844.0,19839.0,0.65580981]
[1673651583999,0.0963,19840.0,19839.0,0.65580981]
[1673651584249,1.104364,19840.0,19839.0,0.65580981]
[1673651584547,1.104364,19840.0,19839.0,0.01521704]
[1673651584873,1.104364,19840.0,19839.0,0.62410289]
[1673651585057,1.4648004,19840.0,19839.0,0.01502704]
[1673651585305,1.354364,19840.0,19839.0,0.01502704]
[1673651585561,1.92724088,19840.0,19839.0,0.01502704]
[1673651585808,1.83878021,19840.0,19839.0,0.01502704]
[1673651586082,1.554364,19840.0,19839.0,0.01502704]
[1673651586330,2.1952019,19840.0,19839.0,0.01502704]
[1673651586577,2.0602019,19840.0,19839.0,0.01502704]
[1673651587086,2.1962019,19840.0,19839.0,0.01502704]
[1673651587597,2.0602019,19840.0,19839.0,0.01502704]
[1673651587850,2.0552019,19840.0,19839.0,0.01002704]
[1673651588388,2.0552019,19840.0,19839.0,7.04e-06]
[1673651588908,3.1375019,19840.0,19839.0,7.04e-06]
[1673651589409,2.931664,19840.0,19839.0,7.04e-06]
[1673651589657,2.931664,19840.0,19838.0,4.08e-06]
[1673651589658,0.52473541,19839.0,19838.0,4.08e-06]
[1673651589903,1.83284941,19839.0,19838.0,4.08e-06]
[1673651590155,1.308114,19839.0,19838.0,4.08e-06]
[1673651590662,1.558114,19839.0,19838.0,4.08e-06]
[1673651591961,1.395114,19839.0,19838.0,0.20028949]
[1673651592212,1.395114,19839.0,19838.0,4.08e-06]
[1673651592462,1.8354378,19839.0,19838.0,4.08e-06]
[1673651592704,1.6984378,19839.0,19838.0,0.00100227]
[1673651592949,1.6984378,19839.0,19833.0,0.49182914]
[1673651592950,1.5869899,19839.0,19833.0,0.49182914]
[1673651593205,0.53565472,19838.0,19833.0,0.68711455]
[1673651593460,1.512363,19837.0,19833.0,0.48682914]
[1673651593954,2.016471,19837.0,19833.0,0.48682914]
[1673651594456,2.016471,19837.0,19833.0,0.68711455]
[1673651594993,2.016471,19837.0,19833.0,0.01002704]
[1673651594994,1.898363,19837.0,19833.0,0.01002704]
[1673651595266,0.1898363,19836.0,19833.0,0.01002704]
[1673651595506,1.512477,19835.0,19833.0,0.01002704]
[1673651595761,0.2,19834.0,19833.0,0.01002704]
[1673651596014,1.208368,19834.0,19833.0,0.01002704]
[1673651596527,1.458368,19834.0,19833.0,0.01002704]
[1673651597043,1.758368,19834.0,19833.0,0.01002704]
[1673651597543,1.458368,19834.0,19833.0,0.01002704]
[1673651597796,2.31135887,19834.0,19833.0,0.01002704]
[1673651598044,1.894368,19834.0,19833.0,0.01002704]
[1673651598290,2.11944805,19834.0,19833.0,0.01002704]
[1673651598532,2.41944805,19834.0,19833.0,0.01002704]
[1673651598775,2.28344805,19834.0,19833.0,0.01002704]
[1673651599053,2.41944805,19834.0,19833.0,0.01002704]
[1673651599302,2.11944805,19834.0,19833.0,0.01002704]
[1673651599548,2.41944805,19834.0,19833.0,0.01002704]
[1673651600087,1.894368,19834.0,19833.0,0.01002704]
[1673651600306,1.394368,19834.0,19833.0,0.21031245]
[1673651600547,1.394368,19834.0,19833.0,0.01002704]
[1673651600806,1.394428,19834.0,19833.0,0.01002704]
[1673651601055,2.0273233,19834.0,19833.0,0.01002704]
[1673651601555,1.8913233,19834.0,19833.0,0.01002704]
[1673651602045,2.0273233,19834.0,19833.0,0.01102704]
[1673651602288,2.0273233,19834.0,19830.0,0.64927756]
[1673651602289,0.64680046,19833.0,19830.0,0.54712418]
[1673651602534,1.65525246,19833.0,19830.0,0.6018366]
[1673651603295,0.72871821,19832.0,19829.0,0.53618534]
[1673651603543,0.504261,19831.0,19829.0,0.53618534]
[1673651603788,0.504261,19831.0,19830.0,0.001]
[1673651604034,0.504261,19831.0,19830.0,0.323855]
[1673651604319,1.008522,19831.0,19829.0,0.53718534]
[1673651604558,1.008522,19831.0,19829.0,0.53618534]
[1673651604559,1.258522,19831.0,19829.0,0.53618534]
[1673651604815,1.393522,19831.0,19830.0,0.001]
[1673651605066,1.258522,19831.0,19829.0,0.53618534]
[1673651605315,1.393522,19831.0,19829.0,0.53718534]
[1673651605571,1.62267182,19831.0,19829.0,0.53718534]
[1673651605828,1.62267182,19831.0,19829.0,0.001]
[1673651605829,2.33870327,19831.0,19829.0,0.001]
[1673651606081,0.63316368,19830.0,19829.0,0.001]
[1673651606831,0.83316368,19830.0,19829.0,0.001]
[1673651607079,0.83316368,19830.0,19827.0,0.01611958]
[1673651607326,0.504311,19829.0,19827.0,0.01611958]
[1673651607822,0.2,19828.0,19827.0,0.01611958]
[1673651608099,0.704337,19828.0,19827.0,0.01611958]
[1673651608597,1.95388454,19828.0,19827.0,0.01711958]
[1673651608848,1.95388454,19828.0,19827.0,0.01611958]
[1673651609107,1.79388454,19828.0,19827.0,0.01811958]
[1673651609861,1.298674,19828.0,19827.0,0.01811958]
[1673651610102,1.298674,19828.0,19827.0,0.07180462]
[1673651610365,1.298674,19828.0,19827.0,0.01811958]
[1673651610880,1.87039794,19828.0,19827.0,0.01811958]
[1673651611124,2.07039794,19828.0,19827.0,0.01811958]
[1673651612140,1.87039794,19828.0,19827.0,0.01811958]
[1673651612636,1.498674,19828.0,19827.0,0.01811958]
[1673651612901,2.0494037,19828.0,19827.0,0.01811958]
[1673651613147,2.44241017,19828.0,19827.0,0.01811958]
[1673651613391,1.85095407,19828.0,19827.0,0.01811958]
[1673651613660,1.81095407,19828.0,19827.0,0.01611958]
[1673651613907,1.81095407,19828.0,19824.0,0.0171408]
[1673651613908,0.01092314,19826.0,19824.0,0.0171408]
[1673651614151,1.513239,19825.0,19824.0,0.0171408]
[1673651614664,2.26837658,19825.0,19824.0,0.0171408]
[1673651614912,2.06551907,19825.0,19824.0,0.0171408]
[1673651615161,2.31551907,19825.0,19824.0,0.0171408]
[1673651615406,2.399239,19825.0,19824.0,0.0171408]
[1673651615657,2.263239,19825.0,19824.0,0.0171408]
[1673651615914,2.25169911,19825.0,19824.0,0.0171408]
[1673651616158,1.763239,19825.0,19824.0,0.0171408]
[1673651616655,1.393826,19825.0,19824.0,0.0171408]
[1673651617183,1.529826,19825.0,19824.0,0.0171408]
[1673651617434,1.258826,19825.0,19824.0,0.0171408]
[1673651617681,1.49696546,19825.0,19824.0,0.0171408]
[1673651617938,2.09483912,19825.0,19824.0,0.0171408]
[1673651618220,2.09483912,19825.0,19824.0,0.0127408]
[1673651618719,2.22983912,19825.0,19824.0,0.0127408]
[1673651619213,2.09483912,19825.0,19824.0,0.0127408]
[1673651619471,2.0921296,19825.0,19824.0,8e-07]
[1673651620215,2.0921296,19825.0,19821.0,0.0122082]
[1673651620216,2.2281296,19825.0,19821.0,0.0122082]
[1673651620467,0.3,19824.0,19821.0,0.0122082]
[1673651620714,2.217856,19823.0,19821.0,0.0122082]
[1673651620954,0.3,19822.0,19821.0,0.0122082]
[1673651621214,1.36125807,19822.0,19821.0,0.0122082]
[1673651621464,1.61125807,19822.0,19821.0,0.0122082]
[1673651621714,1.81125807,19822.0,19821.0,0.0122082]
[1673651622207,1.94725807,19822.0,19821.0,0.0122082]
[1673651622952,1.81125807,19822.0,19821.0,0.0122082]
[1673651623217,1.94725807,19822.0,19821.0,0.0122082]